fUST/lending_fUST_20241201
["ID","MTS","AMOUNT","RATE_DAILY","PERIOD"]
[343897442,1733008240004,-9.97025252,0.00024657,3]
[343897443,1733008240016,-445.26954131,0.00024657,3]
[343897459,1733008243023,-54.73045869,0.00024657,3]
[343897461,1733008243035,-370.85444205,0.00024657,3]
[343897463,1733008243051,-129.14555795,0.00024657,3]
[343897465,1733008243064,-500.0,0.00024657,3]
[343897467,1733008243075,-500.0,0.00024657,3]
[343897468,1733008243086,-399.57341905,0.00024657,3]
[343897469,1733008243098,-316.10710242,0.00024657,3]
[343897486,1733008245899,-183.89289758,0.00024657,3]
[343897487,1733008245909,-500.0,0.00024657,3]
[343897488,1733008245920,-500.0,0.00024657,3]
[343897489,1733008245931,-242.14,0.00024657,3]
[343897490,1733008245943,-349.81662468,0.00024657,3]
[343897491,1733008245963,-150.18337532,0.00024657,3]
[343897492,1733008245975,-99.56787468,0.00024657,3]
[343897513,1733009058542,200.0,0.00013973,2]
[343897571,1733009432090,-300.0,0.00019998,2]
[343897573,1733009432101,-300.0,0.00019998,2]
[343897575,1733009432110,-500.0,0.00019999,2]
[343897577,1733009432120,-292.20550974,0.00019999,2]
[343897579,1733009432129,-500.0,0.00019999,2]
[343897581,1733009432139,-500.0,0.00019999,2]
[343897584,1733009432150,-500.0,0.00019999,2]
[343897586,1733009432160,-500.0,0.00019999,2]
[343897588,1733009432169,-500.0,0.00019999,2]
[343897590,1733009432179,-500.0,0.00019999,2]
[343897592,1733009432188,-241.99143667,0.0002,2]
[343897594,1733009432196,-1169.27083333,0.0002,2]
[343897596,1733009432205,-2004.0,0.0002,2]
[343897599,1733009432215,-2001.0,0.0002,2]
[343897602,1733009432224,-2001.0,0.0002,2]
[343897605,1733009432234,-2001.0,0.0002,2]
[343897608,1733009432244,-50092.0,0.0002,2]
[343897611,1733009432253,-11137.0625812,0.00020052,11]
[343897614,1733009432263,-27857.2840561,0.00020832,2]
[343897616,1733009432272,-172.51773268,0.00020965,2]
[343897617,1733009432281,-621.533634,0.00021065,2]
[343897619,1733009432290,-3635.0474497,0.00021347,2]
[343897621,1733009432300,-420.0,0.00021776,2]
[343897623,1733009432309,-420.0,0.00021998,2]
[343897625,1733009432318,-167.0,0.00022,2]
[343897626,1733009432333,-172.2139978,0.00022329,2]
[343897627,1733009432341,-152.0,0.00022424,2]
[343897628,1733009432350,-665.38,0.00022498,3]
[343897629,1733009432360,-421.38,0.00022498,3]
[343897630,1733009432369,-210.69,0.00022498,3]
[343897631,1733009432379,-632.1,0.00022498,3]
[343897632,1733009432388,-25109.69149316,0.00022507,2]
[343897633,1733009432398,-24900.0,0.00022508,2]
[343897635,1733009432408,-872.9990158,0.00023247,2]
[343897636,1733009432417,-197.15276161,0.00023288,2]
[343897637,1733009432554,-587.0,0.00023711,2]
[343897638,1733009432564,-842.76,0.00023868,3]
[343897639,1733009432579,-421.38,0.00023868,3]
[343897640,1733009432588,-587.0,0.00024198,2]
[343897641,1733009432598,-1169.27083333,0.00024657,3]
[343897642,1733009432607,-1169.27083333,0.00024657,3]
[343897643,1733009432618,-1169.27083333,0.00024657,3]
[343897644,1733009432627,-500.0,0.00024657,3]
[343897645,1733009432636,-505.39158298,0.00024657,3]
[343897646,1733009432646,-500.0,0.00024657,3]
[343897647,1733009432655,-500.0,0.00024657,3]
[343897648,1733009432666,-500.0,0.00024657,3]
[343897649,1733009432675,-500.0,0.00024657,3]
[343897650,1733009432685,-500.0,0.00024657,3]
[343897651,1733009432695,-500.0,0.00024657,3]
[343897652,1733009432705,-500.0,0.00024657,3]
[343897653,1733009432715,-500.0,0.00024657,3]
[343897654,1733009432725,-500.0,0.00024657,3]
[343897655,1733009432734,-500.0,0.00024657,3]
[343897656,1733009432744,-500.0,0.00024657,2]
[343897657,1733009432754,-500.0,0.00024657,3]
[343897658,1733009432763,-500.0,0.00024657,3]
[343897659,1733009432772,-500.0,0.00024657,3]
[343897660,1733009432782,-500.0,0.00024657,3]
[343897661,1733009432792,-500.0,0.00024657,3]
[343897662,1733009432802,-771.45,0.00024657,3]
[343897663,1733009432812,-500.0,0.00024657,3]
[343897664,1733009432823,-500.0,0.00024657,3]
[343897665,1733009432839,-500.0,0.00024657,3]
[343897666,1733009432848,-500.0,0.00024657,3]
[343897667,1733009432858,-500.0,0.00024657,3]
[343897668,1733009432867,-500.0,0.00024657,3]
[343897669,1733009432877,-500.0,0.00024657,3]
[343897670,1733009432887,-500.0,0.00024657,3]
[343897671,1733009432896,-500.0,0.00024657,3]
[343897672,1733009432906,-500.0,0.00024657,3]
[343897673,1733009432916,-500.0,0.00024657,3]
[343897674,1733009432926,-500.0,0.00024657,3]
[343897675,1733009432935,-500.0,0.00024657,3]
[343897676,1733009432945,-500.0,0.00024657,3]
[343897677,1733009432955,-500.0,0.00024657,3]
[343897678,1733009432964,-500.0,0.00024657,3]
[343897679,1733009432974,-500.0,0.00024657,3]
[343897680,1733009432984,-500.0,0.00024657,3]
[343897681,1733009432994,-500.0,0.00024657,3]
[343897682,1733009433003,-500.0,0.00024657,3]
[343897683,1733009433013,-573.41,0.00024657,3]
[343897684,1733009433023,-500.0,0.00024657,3]
[343897685,1733009433032,-500.0,0.00024657,3]
[343897686,1733009433043,-634.01199402,0.00024657,3]
[343897687,1733009433054,-417.22247116,0.00024657,3]
[343897688,1733009433065,-500.0,0.00024657,3]
[343897689,1733009433078,-513.6245377,0.00024657,3]
[343897690,1733009433088,-696.4,0.00024657,3]
[343897691,1733009433097,-500.0,0.00024657,3]
[343897692,1733009433107,-557.88950049,0.00024657,3]
[343897693,1733009433117,-500.0,0.00024657,3]
[343897694,1733009433127,-500.0,0.00024657,3]
[343897695,1733009433138,-164.52550325,0.00024657,3]
[343897696,1733009433148,-500.0,0.00024657,3]
[343897697,1733009433159,-500.0,0.00024657,3]
[343897698,1733009433169,-500.0,0.00024657,3]
[343897699,1733009433179,-500.0,0.00024657,3]
[343897700,1733009433189,-500.0,0.00024657,3]
[343897701,1733009433199,-500.0,0.00024657,3]
[343897702,1733009433209,-16.14178274,0.00024657,3]
[343897703,1733009433305,-483.85821726,0.00024657,3]
[343897704,1733009433315,-500.0,0.00024657,3]
[343897705,1733009433327,-500.0,0.00024657,3]
[343897706,1733009433337,-500.0,0.00024657,3]
[343897707,1733009433346,-81.17776139,0.00024657,3]
[343897719,1733009438149,-418.82223861,0.00024657,3]
[343897721,1733009438158,-296.10776127,0.00024657,3]
[343897723,1733009438169,-203.89223873,0.00024657,3]
[343897724,1733009438179,-500.0,0.00024657,3]
[343897725,1733009438188,-500.0,0.00024657,3]
[343897726,1733009438197,-494.52148,0.00024657,3]
[343897727,1733009438207,-400.43212532,0.00024657,3]
[343897728,1733009438216,-500.0,0.00024657,3]
[343897729,1733009438226,-500.0,0.00024657,3]
[343897730,1733009438235,-500.0,0.00024657,3]
[343897731,1733009438245,-500.0,0.00024657,3]
[343897732,1733009438254,-500.0,0.00024657,3]
[343897733,1733009438264,-500.0,0.00024657,3]
[343897734,1733009438273,-544.11108393,0.00024657,3]
[343897735,1733009438283,-500.0,0.00024657,3]
[343897736,1733009438292,-500.0,0.00024657,3]
[343897737,1733009438301,-500.0,0.00024657,3]
[343897738,1733009438312,-500.0,0.00024657,3]
[343897739,1733009438321,-500.0,0.00024657,3]
[343897740,1733009438332,-1000.0,0.00024657,2]
[343897741,1733009438339,-500.0,0.00024657,3]
[343897742,1733009438348,-500.0,0.00024657,3]
[343897743,1733009438357,-500.0,0.00024657,3]
[343897744,1733009438366,-500.0,0.00024657,3]
[343897745,1733009438376,-500.0,0.00024657,3]
[343897746,1733009438385,-976.66,0.00024657,3]
[343897747,1733009438395,-500.0,0.00024657,3]
[343897748,1733009438404,-500.0,0.00024657,3]
[343897749,1733009438414,-500.0,0.00024657,3]
[343897750,1733009438424,-500.0,0.00024657,3]
[343897751,1733009438433,-500.0,0.00024657,3]
[343897752,1733009438443,-500.0,0.00024657,3]
[343897753,1733009438452,-500.0,0.00024657,3]
[343897754,1733009438461,-500.0,0.00024657,3]
[343897755,1733009438471,-500.0,0.00024657,3]
[343897756,1733009438480,-500.0,0.00024657,3]
[343897757,1733009438490,-500.0,0.00024657,2]
[343897758,1733009438499,-500.0,0.00024657,3]
[343897759,1733009438509,-500.0,0.00024657,3]
[343897760,1733009438518,-500.0,0.00024657,3]
[343897761,1733009438527,-500.0,0.00024657,3]
[343897762,1733009438536,-500.0,0.00024657,3]
[343897763,1733009438544,-500.0,0.00024657,3]
[343897764,1733009438553,-500.0,0.00024657,3]
[343897765,1733009438562,-500.0,0.00024657,3]
[343897766,1733009438573,-500.0,0.00024657,3]
[343897767,1733009438584,-500.0,0.00024657,3]
[343897768,1733009438594,-72.94619358,0.00024657,3]
[343897775,1733009440037,-427.05380642,0.00024657,3]
[343897776,1733009440048,-55.18619358,0.00024657,3]
[343897780,1733009440116,-444.81380642,0.00024657,3]
[343897781,1733009440126,-368.36577001,0.00024657,3]
[343897782,1733009440197,-131.63422999,0.00024657,3]
[343897783,1733009440207,-500.0,0.00024657,3]
[343897784,1733009440216,-570.7,0.00024657,3]
[343897785,1733009440227,-500.0,0.00024657,3]
[343897786,1733009440237,-500.0,0.00024657,3]
[343897787,1733009440247,-430.49227303,0.00024657,3]
[343897788,1733009440257,-500.0,0.00024657,3]
[343897789,1733009440267,-157.1882307,0.00024657,3]
[343897812,1733009443393,-342.8117693,0.00024657,3]
[343897813,1733009443403,-500.0,0.00024657,3]
[343897814,1733009443413,-500.0,0.00024657,3]
[343897815,1733009443423,-500.0,0.00024657,3]
[343897817,1733009443433,-500.0,0.00024657,3]
[343897818,1733009443442,-500.0,0.00024657,3]
[343897819,1733009443451,-500.0,0.00024657,3]
[343897820,1733009443461,-500.0,0.00024657,3]
[343897821,1733009443471,-500.0,0.00024657,3]
[343897822,1733009443480,-500.0,0.00024657,3]
[343897823,1733009443489,-500.0,0.00024657,3]
[343897824,1733009443499,-500.0,0.00024657,3]
[343897825,1733009443508,-500.0,0.00024657,3]
[343897826,1733009443518,-500.0,0.00024657,3]
[343897827,1733009443529,-500.0,0.00024657,3]
[343897828,1733009443539,-2052.0,0.00024657,3]
[343897829,1733009443549,-500.0,0.00024657,3]
[343897830,1733009443558,-500.0,0.00024657,3]
[343897831,1733009443568,-575.43,0.00024657,3]
[343897832,1733009443583,-500.0,0.00024657,3]
[343897833,1733009443593,-500.0,0.00024657,3]
[343897834,1733009443602,-500.0,0.00024657,3]
[343897835,1733009443612,-500.0,0.00024657,3]
[343897836,1733009443623,-259.68172115,0.00024657,3]
[343897837,1733009443632,-500.0,0.00024657,3]
[343897838,1733009443642,-500.0,0.00024657,3]
[343897839,1733009443656,-1813.68,0.00024657,3]
[343897840,1733009443667,-500.0,0.00024657,3]
[343897841,1733009443676,-500.0,0.00024657,3]
[343897842,1733009443686,-500.0,0.00024657,3]
[343897843,1733009443695,-573.72,0.00024657,3]
[343897844,1733009443704,-500.0,0.00024657,3]
[343897845,1733009443714,-500.0,0.00024657,3]
[343897846,1733009443724,-500.0,0.00024657,3]
[343897847,1733009443733,-500.0,0.00024657,3]
[343897848,1733009443742,-500.0,0.00024657,3]
[343897849,1733009443752,-500.0,0.00024657,3]
[343897850,1733009443761,-1716.3,0.00024657,3]
[343897851,1733009443770,-500.0,0.00024657,3]
[343897852,1733009443780,-500.0,0.00024657,3]
[343897853,1733009443790,-500.0,0.00024657,3]
[343897854,1733009443800,-524.02360541,0.00024657,3]
[343897855,1733009443809,-500.0,0.00024657,3]
[343897856,1733009443819,-500.0,0.00024657,3]
[343897857,1733009443829,-350.46959301,0.00024657,3]
[343897858,1733009443839,-500.0,0.00024657,3]
[343897859,1733009443846,-500.0,0.00024657,3]
[343897860,1733009443856,-500.0,0.00024657,3]
[343897861,1733009443865,-500.0,0.00024657,3]
[343897862,1733009443961,-261.96880808,0.00024657,3]
[343897863,1733009443971,-500.0,0.00024657,3]
[343897864,1733009443981,-857.99,0.00024657,3]
[343897865,1733009443991,-810.69,0.00024657,3]
[343897866,1733009444001,-500.0,0.00024657,3]
[343897867,1733009444011,-500.0,0.00024657,3]
[343897868,1733009444021,-500.0,0.00024657,3]
[343897869,1733009444030,-500.0,0.00024657,3]
[343897870,1733009444040,-336.52,0.00024657,3]
[343897871,1733009444050,-500.0,0.00024657,3]
[343897872,1733009444060,-500.0,0.00024657,3]
[343897873,1733009444069,-500.0,0.00024657,3]
[343897874,1733009444080,-500.0,0.00024657,3]
[343897875,1733009444089,-500.0,0.00024657,3]
[343897876,1733009444099,-500.0,0.00024657,3]
[343897877,1733009444108,-500.0,0.00024657,3]
[343897878,1733009444117,-500.0,0.00024657,3]
[343897879,1733009444127,-500.0,0.00024919,3]
[343897880,1733009444139,-1939.37892504,0.00024921,10]
[343897881,1733009444152,-3647.25107496,0.00024921,10]
[343897882,1733009444161,-500.0,0.0002493,3]
[343897883,1733009444171,-500.0,0.0002493,3]
[343897884,1733009444180,-500.0,0.0002493,3]
[343897885,1733009444189,-500.0,0.0002493,3]
[343897886,1733009444199,-500.0,0.0002493,3]
[343897887,1733009444208,-500.0,0.00024931,3]
[343897888,1733009444218,-383.58313051,0.00024931,3]
[343897889,1733009444228,-500.0,0.00024931,3]
[343897890,1733009444238,-500.0,0.00024931,3]
[343897891,1733009444248,-500.0,0.00024931,3]
[343897892,1733009444258,-500.0,0.00024931,3]
[343897893,1733009444267,-500.0,0.00024931,3]
[343897894,1733009444277,-500.0,0.00024931,3]
[343897895,1733009444287,-500.0,0.00024931,3]
[343897896,1733009444296,-500.0,0.00024931,3]
[343897897,1733009444306,-500.0,0.00024931,3]
[343897898,1733009444315,-500.0,0.00024931,3]
[343897899,1733009444326,-478.42479078,0.00024931,3]
[343897900,1733009444337,-500.0,0.00024931,3]
[343897901,1733009444346,-500.0,0.00024931,3]
[343897902,1733009444356,-771.45,0.00024931,3]
[343897903,1733009444365,-500.0,0.00024931,3]
[343897904,1733009444375,-500.0,0.00024931,3]
[343897905,1733009444385,-500.0,0.00024931,3]
[343897906,1733009444395,-500.0,0.00024931,3]
[343897907,1733009444404,-500.0,0.00024931,3]
[343897908,1733009444413,-500.0,0.00024931,3]
[343897909,1733009444423,-500.0,0.00024931,3]
[343897910,1733009444432,-500.0,0.00024931,3]
[343897911,1733009444442,-500.0,0.00024931,3]
[343897912,1733009444451,-500.0,0.00024931,3]
[343897913,1733009444461,-500.0,0.00024931,3]
[343897914,1733009444470,-500.0,0.00024931,3]
[343897915,1733009444480,-534.75429656,0.00024931,3]
[343897916,1733009444490,-500.0,0.00024931,3]
[343897917,1733009444500,-500.0,0.00024931,3]
[343897918,1733009444509,-581.5327473,0.00024931,3]
[343897919,1733009444519,-500.0,0.00024931,3]
[343897920,1733009444529,-573.41,0.00024931,3]
[343897921,1733009444539,-206.07254899,0.00024931,3]
[343897922,1733009444548,-500.0,0.00024931,3]
[343897923,1733009444558,-500.0,0.00024931,3]
[343897924,1733009444567,-696.4,0.00024931,3]
[343897925,1733009444582,-500.0,0.00024931,3]
[343897926,1733009444592,-500.0,0.00024931,3]
[343897927,1733009444601,-500.0,0.00024931,3]
[343897928,1733009444611,-500.0,0.00024931,3]
[343897929,1733009444621,-500.0,0.00024931,3]
[343897930,1733009444630,-500.0,0.00024931,3]
[343897931,1733009444640,-500.0,0.00024931,3]
[343897932,1733009444650,-500.0,0.00024931,3]
[343897933,1733009444660,-533.62027934,0.00024931,3]
[343897934,1733009444669,-500.0,0.00024931,3]
[343897935,1733009444678,-500.0,0.00024931,3]
[343897936,1733009444687,-500.0,0.00024931,3]
[343897937,1733009444697,-501.23547662,0.00024931,3]
[343897938,1733009444706,-500.0,0.00024931,3]
[343897939,1733009444716,-500.0,0.00024931,3]
[343897940,1733009444724,-450.87767866,0.00024931,3]
[343897941,1733009444738,-49.12232134,0.00024931,3]
[343897942,1733009444747,-500.0,0.00024931,3]
[343897943,1733009444756,-500.0,0.00024931,3]
[343897944,1733009444765,-500.0,0.00024931,3]
[343897945,1733009444775,-500.0,0.00024931,3]
[343897946,1733009444785,-500.0,0.00024931,3]
[343897947,1733009444794,-8.61008976,0.00024931,3]
[343897961,1733009736426,200.0,0.00013973,2]
[343898069,1733010632300,-299.2479134,0.00017727,2]
[343898070,1733010632310,-121.7520366,0.00017906,2]
[343898071,1733010632322,-470.01170499,0.00017906,2]
[343898072,1733010632333,-300.0,0.00019211,2]
[343898073,1733010632343,-300.0,0.00019211,2]
[343898074,1733010632352,-1623.25560077,0.00019212,2]
[343898075,1733010632363,-3259.84829232,0.00019212,2]
[343898076,1733010632373,-5339.6,0.00019212,2]
[343898077,1733010632384,-734.0,0.00019212,2]
[343898115,1733010638496,-1772.80623843,0.00019212,2]
[343898116,1733010638506,-1169.27083333,0.0002,2]
[343898117,1733010638516,-420.0,0.00020935,2]
[343898118,1733010638526,-4413.6135102,0.00021589,2]
[343898119,1733010638536,-1579.8934485,0.00021912,2]
[343898120,1733010638546,-64.53740696,0.0002199,2]
[343898121,1733010638588,-246.22941004,0.0002199,2]
[343898122,1733010638598,-194.0,0.00022,2]
[343898123,1733010638609,-79.92857226,0.00022192,2]
[343898124,1733010638621,-114.07142774,0.00022192,2]
[343898125,1733010638631,-587.0,0.00022815,2]
[343898126,1733010638641,-194.0,0.00023014,2]
[343898127,1733010638651,-208.2971156,0.00023227,2]
[343898128,1733010638660,-150.0,0.00023515,2]
[343898129,1733010638670,-531.0,0.00023515,2]
[343898130,1733010638679,-2378.0,0.00023515,2]
[343898131,1733010638689,-2208.0,0.00023515,2]
[343898132,1733010638699,-196.0,0.00024164,2]
[343898133,1733010638708,-172.51773268,0.0002455,2]
[343898134,1733010638718,-734.0,0.00024557,2]
[343898135,1733010638727,-260.16,0.00024647,3]
[343898136,1733010638737,-780.49,0.00024647,3]
[343898137,1733010638746,-500.0,0.00024649,2]
[343898138,1733010638756,-500.0,0.00024649,2]
[343898139,1733010638765,-302.74503449,0.00024649,2]
[343898140,1733010638775,-500.0,0.00024649,2]
[343898141,1733010638785,-500.0,0.00024649,2]
[343898142,1733010638794,-386.91012939,0.00024649,2]
[343898143,1733010638803,-500.0,0.00024649,2]
[343898144,1733010638813,-500.0,0.00024649,2]
[343898145,1733010638823,-500.0,0.00024649,2]
[343898146,1733010638832,-500.0,0.00024649,2]
[343898147,1733010638842,-500.0,0.00024649,2]
[343898148,1733010638851,-500.0,0.00024649,2]
[343898149,1733010638861,-584.58158256,0.00024649,2]
[343898150,1733010638870,-500.0,0.00024649,2]
[343898151,1733010638880,-565.79756952,0.00024649,2]
[343898152,1733010638900,-500.0,0.00024649,2]
[343898153,1733010638912,-500.0,0.00024649,2]
[343898154,1733010638922,-500.0,0.00024649,2]
[343898155,1733010638935,-500.0,0.00024649,2]
[343898156,1733010638945,-500.0,0.00024649,2]
[343898157,1733010638954,-500.0,0.00024649,2]
[343898158,1733010638964,-500.0,0.00024649,2]
[343898159,1733010638975,-500.0,0.00024649,2]
[343898160,1733010638984,-500.0,0.00024649,2]
[343898161,1733010638993,-488.52392297,0.00024649,2]
[343898162,1733010639003,-500.0,0.00024649,2]
[343898163,1733010639012,-500.0,0.00024649,2]
[343898164,1733010639024,-500.0,0.00024649,2]
[343898165,1733010639034,-500.0,0.00024649,2]
[343898166,1733010639050,-500.0,0.00024649,2]
[343898167,1733010639060,-217.32952006,0.00024649,2]
[343898168,1733010639070,-500.0,0.00024649,2]
[343898169,1733010639079,-500.0,0.00024649,2]
[343898170,1733010639091,-500.0,0.00024649,2]
[343898171,1733010639102,-500.0,0.00024649,2]
[343898172,1733010639124,-500.0,0.00024649,2]
[343898173,1733010639141,-89.82430715,0.00024649,2]
[343898174,1733010639153,-410.17569285,0.00024649,2]
[343898175,1733010639163,-500.0,0.00024649,2]
[343898176,1733010639173,-500.0,0.00024649,2]
[343898177,1733010639183,-500.0,0.00024649,2]
[343898178,1733010639193,-500.0,0.00024649,2]
[343898179,1733010639203,-500.0,0.00024649,2]
[343898180,1733010639214,-500.0,0.00024649,2]
[343898181,1733010639225,-500.0,0.00024649,2]
[343898182,1733010639235,-435.13980963,0.00024649,2]
[343898183,1733010639246,-64.86019037,0.00024649,2]
[343898184,1733010639257,-500.0,0.00024649,2]
[343898185,1733010639267,-500.0,0.00024649,2]
[343898186,1733010639277,-212.62546675,0.00024649,2]
[343898189,1733010640325,-287.37453325,0.00024649,2]
[343898190,1733010640337,-500.0,0.00024649,2]
[343898191,1733010640346,-500.0,0.00024649,2]
[343898192,1733010640355,-427.55407436,0.0002465,2]
[343898193,1733010640364,-900.57139239,0.00024657,3]
[343898194,1733010640376,-268.69944094,0.00024657,3]
[343898195,1733010640386,-409.22055906,0.00024657,3]
[343898212,1733010643434,-310.766817,0.00023777,2]
[343898213,1733010643444,-760.05027427,0.00024657,3]
[343898214,1733010643453,-500.0,0.00024657,3]
[343898215,1733010643463,-500.0,0.00024657,3]
[343898216,1733010643473,-500.0,0.00024657,2]
[343898217,1733010643482,-500.0,0.00024657,2]
[343898218,1733010643492,-500.0,0.00024657,3]
[343898221,1733010643501,-748.83,0.00024657,3]
[343898224,1733010643510,-500.0,0.00024657,3]
[343898225,1733010643519,-500.0,0.00024657,3]
[343898226,1733010643529,-500.0,0.00024657,3]
[343898227,1733010643538,-500.0,0.00024657,3]
[343898228,1733010643547,-500.0,0.00024657,3]
[343898229,1733010643556,-500.0,0.00024657,3]
[343898230,1733010643566,-500.0,0.00024657,3]
[343898231,1733010643576,-500.0,0.00024657,3]
[343898232,1733010643587,-500.0,0.00024657,3]
[343898233,1733010643600,-500.0,0.00024657,3]
[343898234,1733010643609,-500.0,0.00024657,3]
[343898235,1733010643618,-500.0,0.00024657,3]
[343898236,1733010643628,-500.0,0.00024657,3]
[343898237,1733010643638,-500.0,0.00024657,3]
[343898238,1733010643647,-500.0,0.00024657,3]
[343898239,1733010643656,-500.0,0.00024657,3]
[343898240,1733010643666,-500.0,0.00024657,3]
[343898241,1733010643675,-500.0,0.00024657,3]
[343898242,1733010643684,-500.0,0.00024657,3]
[343898243,1733010643693,-500.0,0.00024657,3]
[343898244,1733010643703,-1000.0,0.00024657,2]
[343898245,1733010643713,-547.18,0.00024657,3]
[343898246,1733010643722,-557.08242784,0.00024657,3]
[343898247,1733010643731,-500.0,0.00024657,3]
[343898248,1733010643741,-500.0,0.00024657,3]
[343898249,1733010643750,-500.0,0.00024657,3]
[343898250,1733010643760,-503.18215782,0.00024657,3]
[343898251,1733010643769,-500.0,0.00024657,3]
[343898252,1733010643778,-500.0,0.00024657,3]
[343898253,1733010643787,-528.01337487,0.00024657,3]
[343898254,1733010643796,-500.0,0.00024657,3]
[343898255,1733010643806,-630.8941857,0.00024657,3]
[343898256,1733010643815,-500.0,0.00024657,3]
[343898257,1733010643824,-500.0,0.00024657,3]
[343898258,1733010643833,-500.0,0.00024657,3]
[343898259,1733010643843,-174.31622735,0.00024657,3]
[343898260,1733010643853,-500.0,0.00024657,3]
[343898261,1733010643862,-500.0,0.00024657,3]
[343898262,1733010643872,-500.0,0.00024657,3]
[343898263,1733010643881,-500.0,0.00024657,3]
[343898264,1733010643891,-500.0,0.00024657,3]
[343898265,1733010643900,-500.0,0.00024657,3]
[343898266,1733010643909,-500.0,0.00024657,3]
[343898267,1733010643918,-500.0,0.00024657,3]
[343898268,1733010643927,-409.76671671,0.00024657,3]
[343898269,1733010643945,-90.23328329,0.00024657,3]
[343898270,1733010643955,-500.0,0.00024657,3]
[343898271,1733010643966,-500.0,0.00024657,3]
[343898272,1733010643975,-500.0,0.00024657,3]
[343898273,1733010643985,-500.0,0.00024657,3]
[343898274,1733010643994,-500.0,0.00024657,3]
[343898275,1733010644004,-500.0,0.00024657,3]
[343898276,1733010644013,-500.0,0.00024657,3]
[343898277,1733010644023,-500.0,0.00024657,3]
[343898278,1733010644032,-535.97875248,0.00024657,3]
[343898279,1733010644118,-500.0,0.00024657,3]
[343898280,1733010644129,-510.01370663,0.00024657,3]
[343898281,1733010644139,-637.04,0.00024657,3]
[343898282,1733010644149,-500.0,0.00024657,3]
[343898283,1733010644158,-500.0,0.00024657,3]
[343898284,1733010644167,-500.0,0.00024657,3]
[343898285,1733010644176,-500.0,0.00024657,3]
[343898286,1733010644185,-500.0,0.00024657,3]
[343898287,1733010644195,-500.0,0.00024657,3]
[343898288,1733010644204,-500.0,0.00024657,3]
[343898289,1733010644213,-500.0,0.00024657,3]
[343898290,1733010644222,-680.68,0.00024657,3]
[343898291,1733010644232,-500.0,0.00024657,3]
[343898292,1733010644241,-499.94796467,0.00024657,3]
[343898298,1733010646341,-92.07583158,0.00024657,3]
[343898299,1733010646351,-500.0,0.00024657,3]
[343898300,1733010646360,-500.0,0.00024657,3]
[343898301,1733010646369,-500.0,0.00024657,3]
[343898302,1733010646380,-500.0,0.00024657,3]
[343898303,1733010646390,-500.0,0.00024657,3]
[343898304,1733010646399,-500.0,0.00024657,3]
[343898305,1733010646408,-500.0,0.00024657,3]
[343898306,1733010646417,-500.0,0.00024657,3]
[343898307,1733010646426,-500.0,0.00024657,3]
[343898308,1733010646437,-500.0,0.00024657,3]
[343898309,1733010646447,-500.0,0.00024657,3]
[343898310,1733010646457,-500.0,0.00024657,3]
[343898311,1733010646467,-500.0,0.00024657,3]
[343898312,1733010646477,-500.0,0.00024657,3]
[343898313,1733010646486,-500.0,0.00024657,3]